[Event "Early-Titled-Tuesday-Blitz-March-12-2024"]
[Site "Chess.com"]
[Date "2024.03.12"]
[Round "2"]
[White "Smoking_Crow"]
[Black "DrRiebert"]
[Result "0-1"]
[WhiteElo "2579"]
[BlackElo "2391"]
[TimeControl "180+1"]
[EndTime "8:17:06 PDT"]
[Termination "DrRiebert won by resignation"]

1. e4 {[%clk 0:03:00.9]} 1... c5 {[%clk 0:03:00.2]} 2. Nf3 {[%clk 0:03:00.7]}
2... Nc6 {[%clk 0:03:00.4]} 3. d4 {[%clk 0:02:56.8]} 3... cxd4 {[%clk
0:03:01.3]} 4. Nxd4 {[%clk 0:02:57.5]} 4... g6 {[%clk 0:03:02.1]} 5. Nc3 {[%clk
0:02:55.7]} 5... Bg7 {[%clk 0:03:01.6]} 6. Be3 {[%clk 0:02:55.2]} 6... Nf6
{[%clk 0:03:01.9]} 7. Bc4 {[%clk 0:02:55.2]} 7... d6 {[%clk 0:03:02.2]} 8. f3
{[%clk 0:02:54.9]} 8... Qb6 {[%clk 0:03:02.5]} 9. Nf5 {[%clk 0:02:47.1]} 9...
Qxb2 {[%clk 0:03:02.5]} 10. Nxg7+ {[%clk 0:02:47]} 10... Kf8 {[%clk 0:03:02.3]}
11. Kd2 {[%clk 0:01:02.3]} 11... Kxg7 {[%clk 0:02:56]} 12. a3 {[%clk 0:00:56.8]}
12... Na5 {[%clk 0:01:39]} 13. Ba2 {[%clk 0:00:52.2]} 13... Be6 {[%clk 0:01:33]}
14. Bxe6 {[%clk 0:00:50.2]} 14... fxe6 {[%clk 0:01:33.9]} 15. Qe2 {[%clk
0:00:49.6]} 15... Nb3+ {[%clk 0:01:28.6]} 16. Kd3 {[%clk 0:00:48.3]} 16... Nxa1
{[%clk 0:01:27.8]} 17. Rb1 {[%clk 0:00:40.4]} 17... Qxc2+ {[%clk 0:01:19.8]} 18.
Qxc2 {[%clk 0:00:39.5]} 18... Nxc2 {[%clk 0:01:20.7]} 19. Kxc2 {[%clk
0:00:40.1]} 19... b6 {[%clk 0:01:19.9]} 20. Kd3 {[%clk 0:00:40.4]} 20... Rhc8
{[%clk 0:01:19.1]} 21. Bd4 {[%clk 0:00:40.3]} 21... e5 {[%clk 0:01:18.8]} 22.
Be3 {[%clk 0:00:37.8]} 22... Rc6 {[%clk 0:01:19.3]} 23. Ne2 {[%clk 0:00:37]}
23... Rac8 {[%clk 0:01:17.9]} 24. Rb2 {[%clk 0:00:37.9]} 24... Nd7 {[%clk
0:01:14.1]} 25. Kd2 {[%clk 0:00:36]} 25... Nc5 {[%clk 0:01:11.9]} 26. Nc3 {[%clk
0:00:31.7]} 26... Kf7 {[%clk 0:01:10.7]} 27. Nd5 {[%clk 0:00:31.6]} 27... Na4
{[%clk 0:01:07.7]} 28. Rb4 {[%clk 0:00:29.8]} 28... Rc2+ {[%clk 0:01:05.4]} 29.
Kd3 {[%clk 0:00:30.3]} 29... Nb2+ {[%clk 0:01:04.2]} 30. Rxb2 {[%clk 0:00:30]}
30... Rxb2 {[%clk 0:01:05.1]} 31. Bg5 {[%clk 0:00:29.9]} 31... e6 {[%clk
0:01:00]} 32. Nb4 {[%clk 0:00:29.4]} 32... a5 {[%clk 0:00:57.2]} 33. Na6 {[%clk
0:00:29.2]} 33... Rb3+ {[%clk 0:00:55.1]} 34. Kd2 {[%clk 0:00:28.7]} 34... b5
{[%clk 0:00:53.6]} 35. Be3 {[%clk 0:00:27.5]} 35... Rxa3 {[%clk 0:00:51.8]} 36.
Bb6 {[%clk 0:00:27.7]} 36... b4 {[%clk 0:00:51.5]} 37. Nc7 {[%clk 0:00:27.1]}
37... Ra2+ {[%clk 0:00:50]} 38. Kd3 {[%clk 0:00:26.7]} 38... a4 {[%clk
0:00:48.9]} 39. Nb5 {[%clk 0:00:26.6]} 39... Rc6 {[%clk 0:00:48.7]} 40. Ba5
{[%clk 0:00:25]} 40... b3 {[%clk 0:00:48.9]} 41. Bc3 {[%clk 0:00:25.1]} 41... b2
{[%clk 0:00:48.6]} 42. Kc2 {[%clk 0:00:25.2]} 42... a3 {[%clk 0:00:47.6]} 0-1

[Event "Early-Titled-Tuesday-Blitz-March-12-2024"]
[Site "Chess.com"]
[Date "2024.03.12"]
[Round "2"]
[White "CarlosjPineror"]
[Black "temus_galaktionov"]
[Result "1-0"]
[WhiteElo "2616"]
[BlackElo "2880"]
[TimeControl "180+1"]
[EndTime "8:17:17 PDT"]
[Termination "CarlosjPineror won by resignation"]

1. e4 {[%clk 0:03:00.9]} 1... c6 {[%clk 0:02:45.7]} 2. d4 {[%clk 0:02:57.3]}
2... g6 {[%clk 0:02:44.1]} 3. c3 {[%clk 0:02:53.3]} 3... d6 {[%clk 0:02:36.5]}
4. Bd3 {[%clk 0:02:51.5]} 4... Bg7 {[%clk 0:02:33.5]} 5. h3 {[%clk 0:02:43.4]}
5... Nf6 {[%clk 0:02:31.8]} 6. Nf3 {[%clk 0:02:43.5]} 6... Nbd7 {[%clk
0:02:29.9]} 7. O-O {[%clk 0:02:43.7]} 7... e5 {[%clk 0:02:27.6]} 8. Re1 {[%clk
0:02:42.6]} 8... O-O {[%clk 0:02:26.9]} 9. Nbd2 {[%clk 0:02:42.2]} 9... Qc7
{[%clk 0:02:26.8]} 10. Nf1 {[%clk 0:02:41.8]} 10... b6 {[%clk 0:02:26.9]} 11.
Ng3 {[%clk 0:02:41.1]} 11... Bb7 {[%clk 0:02:26.5]} 12. Qb3 {[%clk 0:02:31.6]}
12... Rae8 {[%clk 0:02:22.8]} 13. Bg5 {[%clk 0:02:27.6]} 13... h6 {[%clk
0:02:15.7]} 14. Be3 {[%clk 0:02:27.4]} 14... Kh7 {[%clk 0:02:14.5]} 15. Rad1
{[%clk 0:02:26.6]} 15... d5 {[%clk 0:02:11.6]} 16. dxe5 {[%clk 0:02:21.4]} 16...
Nxe4 {[%clk 0:02:10.2]} 17. Nxe4 {[%clk 0:02:01.3]} 17... dxe4 {[%clk
0:02:11.1]} 18. Bxe4 {[%clk 0:02:01]} 18... Nxe5 {[%clk 0:02:11.5]} 19. Nxe5
{[%clk 0:02:01.2]} 19... Bxe5 {[%clk 0:02:12.3]} 20. Bf3 {[%clk 0:01:49]} 20...
Bg7 {[%clk 0:02:09.9]} 21. Qc4 {[%clk 0:01:38]} 21... Qc8 {[%clk 0:01:14.8]} 22.
Rd2 {[%clk 0:01:14.6]} 22... c5 {[%clk 0:00:58.6]} 23. Bxb7 {[%clk 0:01:12.7]}
23... Qxb7 {[%clk 0:00:59.5]} 24. Red1 {[%clk 0:01:12.4]} 24... Re7 {[%clk
0:00:59.8]} 25. Qd5 {[%clk 0:01:12]} 25... Qc7 {[%clk 0:00:53.3]} 26. Qd6 {[%clk
0:01:11.3]} 26... Rfe8 {[%clk 0:00:51.6]} 27. Qxc7 {[%clk 0:01:11]} 27... Rxc7
{[%clk 0:00:52.5]} 28. Rd5 {[%clk 0:01:10]} 28... Re4 {[%clk 0:00:44.8]} 29. Rd7
{[%clk 0:01:02.9]} 29... Re7 {[%clk 0:00:44.1]} 30. Rd8 {[%clk 0:01:02.7]} 30...
Bf6 {[%clk 0:00:40.3]} 31. R8d5 {[%clk 0:01:02]} 31... h5 {[%clk 0:00:39.2]} 32.
Kf1 {[%clk 0:01:01.7]} 32... Kg7 {[%clk 0:00:37.4]} 33. Bf4 {[%clk 0:00:59.8]}
33... Rc6 {[%clk 0:00:33.7]} 34. Rd7 {[%clk 0:00:52.5]} 34... Rce6 {[%clk
0:00:33.3]} 35. g3 {[%clk 0:00:44]} 35... a6 {[%clk 0:00:20.9]} 36. R7d6 {[%clk
0:00:39.3]} 36... b5 {[%clk 0:00:20.5]} 37. Be3 {[%clk 0:00:37.6]} 37... c4
{[%clk 0:00:20.5]} 38. a3 {[%clk 0:00:37.6]} 38... Be5 {[%clk 0:00:19.8]} 39.
R6d5 {[%clk 0:00:37.2]} 39... Kf6 {[%clk 0:00:18.6]} 40. h4 {[%clk 0:00:35.8]}
40... Bxg3 {[%clk 0:00:17.6]} 41. Bg5+ {[%clk 0:00:35.3]} 41... Kg7 {[%clk
0:00:17.6]} 42. Bxe7 {[%clk 0:00:35]} 1-0

[Event "Early-Titled-Tuesday-Blitz-March-12-2024"]
[Site "Chess.com"]
[Date "2024.03.12"]
[Round "2"]
[White "waltereador"]
[Black "Kielinkei"]
[Result "0-1"]
[WhiteElo "2327"]
[BlackElo "2562"]
[TimeControl "180+1"]
[EndTime "8:17:19 PDT"]
[Termination "Kielinkei won by resignation"]

1. e4 {[%clk 0:03:00.9]} 1... c5 {[%clk 0:03:00.2]} 2. b4 {[%clk 0:02:57.5]}
2... cxb4 {[%clk 0:02:59]} 3. a3 {[%clk 0:02:57.8]} 3... d5 {[%clk 0:02:59.1]}
4. exd5 {[%clk 0:02:57.4]} 4... Qxd5 {[%clk 0:02:58.8]} 5. Nf3 {[%clk 0:02:58]}
5... Nf6 {[%clk 0:02:57.1]} 6. axb4 {[%clk 0:02:53.6]} 6... g6 {[%clk
0:02:45.3]} 7. Nc3 {[%clk 0:02:52.6]} 7... Qd8 {[%clk 0:02:44.2]} 8. b5 {[%clk
0:02:51.9]} 8... Bg7 {[%clk 0:02:43.1]} 9. Bc4 {[%clk 0:02:50.1]} 9... O-O
{[%clk 0:02:42.7]} 10. h3 {[%clk 0:02:50]} 10... Nbd7 {[%clk 0:02:36.8]} 11. O-O
{[%clk 0:02:49.8]} 11... Nb6 {[%clk 0:02:36.8]} 12. Bb3 {[%clk 0:02:47]} 12...
Nfd5 {[%clk 0:02:34.7]} 13. Nxd5 {[%clk 0:02:29.3]} 13... Nxd5 {[%clk
0:02:09.9]} 14. Rb1 {[%clk 0:02:24.7]} 14... b6 {[%clk 0:02:02.4]} 15. Ba3
{[%clk 0:02:12.9]} 15... Bb7 {[%clk 0:02:00.2]} 16. Re1 {[%clk 0:02:12.1]} 16...
Re8 {[%clk 0:01:58.4]} 17. c4 {[%clk 0:02:09.3]} 17... Nf4 {[%clk 0:01:54.1]}
18. d4 {[%clk 0:02:09.3]} 18... e5 {[%clk 0:01:24.6]} 19. dxe5 {[%clk
0:02:06.9]} 19... Nd3 {[%clk 0:01:16.1]} 20. Re3 {[%clk 0:02:01]} 20... Nxe5
{[%clk 0:01:15.9]} 21. Nxe5 {[%clk 0:02:00.7]} 21... Bxe5 {[%clk 0:01:12.4]} 22.
Qe2 {[%clk 0:01:59.5]} 22... Bg7 {[%clk 0:01:07.6]} 23. Re1 {[%clk 0:01:56.2]}
23... Rxe3 {[%clk 0:01:02.9]} 24. Qxe3 {[%clk 0:01:56.4]} 24... Qd7 {[%clk
0:01:00.1]} 25. c5 {[%clk 0:01:51.5]} 25... bxc5 {[%clk 0:00:59.5]} 26. Bxc5
{[%clk 0:01:51.5]} 26... a5 {[%clk 0:00:56.8]} 27. bxa6 {[%clk 0:01:50.6]} 27...
Bxa6 {[%clk 0:00:55.9]} 28. Qe7 {[%clk 0:01:45]} 28... Qxe7 {[%clk 0:00:51.8]}
29. Rxe7 {[%clk 0:01:44.9]} 29... Rb8 {[%clk 0:00:42.1]} 30. Bxf7+ {[%clk
0:01:42.7]} 30... Kh8 {[%clk 0:00:41.2]} 31. Re8+ {[%clk 0:01:39.2]} 31... Rxe8
{[%clk 0:00:40.7]} 32. Bxe8 {[%clk 0:01:39.9]} 32... Bc4 {[%clk 0:00:40.3]} 33.
Bc6 {[%clk 0:01:39.2]} 33... Be6 {[%clk 0:00:40.6]} 34. g4 {[%clk 0:01:38.7]}
34... Bc4 {[%clk 0:00:40.4]} 35. Kg2 {[%clk 0:01:38.4]} 35... Be6 {[%clk
0:00:41]} 36. f4 {[%clk 0:01:37.4]} 36... Bc8 {[%clk 0:00:41.1]} 37. Kf3 {[%clk
0:01:37.6]} 37... Be6 {[%clk 0:00:40.3]} 38. h4 {[%clk 0:01:34.7]} 38... Kg8
{[%clk 0:00:40.8]} 39. Bd6 {[%clk 0:01:34.1]} 39... Kf7 {[%clk 0:00:40.9]} 40.
Be4 {[%clk 0:01:27.8]} 40... h5 {[%clk 0:00:38.3]} 41. gxh5 {[%clk 0:01:21.4]}
41... gxh5 {[%clk 0:00:39.2]} 42. f5 {[%clk 0:01:18.1]} 42... Bb3 {[%clk
0:00:39.8]} 43. Be5 {[%clk 0:01:17.4]} 43... Bxe5 {[%clk 0:00:39.3]} 44. Bc6
{[%clk 0:01:13.6]} 44... Bd1+ {[%clk 0:00:36.6]} 45. Ke4 {[%clk 0:01:13.9]}
45... Bf6 {[%clk 0:00:35.7]} 46. Bd5+ {[%clk 0:01:14.1]} 46... Kg7 {[%clk
0:00:34.8]} 47. Kf4 {[%clk 0:01:13.7]} 47... Bxh4 {[%clk 0:00:33.8]} 48. Bf3
{[%clk 0:01:13.9]} 48... Bg5+ {[%clk 0:00:28]} 49. Kxg5 {[%clk 0:01:12.9]} 49...
Bxf3 {[%clk 0:00:28.2]} 50. Kf4 {[%clk 0:01:10.4]} 50... Bg4 {[%clk 0:00:27.9]}
51. Kg5 {[%clk 0:01:10.8]} 51... Kf7 {[%clk 0:00:28]} 52. f6 {[%clk 0:01:08.6]}
52... Bd1 {[%clk 0:00:25.8]} 53. Kf5 {[%clk 0:01:08]} 53... h4 {[%clk
0:00:25.1]} 54. Kf4 {[%clk 0:01:06.3]} 54... Kxf6 {[%clk 0:00:24.6]} 55. Ke3
{[%clk 0:01:06.3]} 55... Kg5 {[%clk 0:00:24.8]} 56. Kf2 {[%clk 0:01:07]} 56...
Kg4 {[%clk 0:00:25.3]} 57. Kg2 {[%clk 0:01:07.5]} 57... Bf3+ {[%clk 0:00:24.6]}
58. Kh2 {[%clk 0:01:08]} 58... h3 {[%clk 0:00:25]} 59. Kg1 {[%clk 0:01:08.2]}
59... Kg3 {[%clk 0:00:25.5]} 60. Kf1 {[%clk 0:01:08.4]} 60... h2 {[%clk
0:00:26.4]} 61. Ke1 {[%clk 0:01:09]} 61... h1=Q+ {[%clk 0:00:27.3]} 62. Kd2
{[%clk 0:01:09.9]} 62... Qd1+ {[%clk 0:00:27.5]} 0-1

[Event "Early-Titled-Tuesday-Blitz-March-12-2024"]
[Site "Chess.com"]
[Date "2024.03.12"]
[Round "2"]
[White "GeorgiosSouleidis"]
[Black "shimastream"]
[Result "0-1"]
[WhiteElo "2656"]
[BlackElo "2955"]
[TimeControl "180+1"]
[EndTime "8:17:27 PDT"]
[Termination "shimastream won on time"]

1. e4 {[%clk 0:03:00.9]} 1... e6 {[%clk 0:02:55.4]} 2. d4 {[%clk 0:03:01]} 2...
d5 {[%clk 0:02:55.3]} 3. Nc3 {[%clk 0:03:01.5]} 3... Bb4 {[%clk 0:02:53]} 4. Ne2
{[%clk 0:03:01.4]} 4... Nf6 {[%clk 0:02:21]} 5. e5 {[%clk 0:02:59.1]} 5... Nfd7
{[%clk 0:02:18.2]} 6. a3 {[%clk 0:02:57.6]} 6... Be7 {[%clk 0:02:17.1]} 7. f4
{[%clk 0:02:57.6]} 7... c5 {[%clk 0:02:17]} 8. Be3 {[%clk 0:02:56.7]} 8... Nc6
{[%clk 0:02:16.5]} 9. dxc5 {[%clk 0:02:53.6]} 9... Nxc5 {[%clk 0:02:14.1]} 10.
Qd2 {[%clk 0:02:52.1]} 10... O-O {[%clk 0:02:06.5]} 11. O-O-O {[%clk 0:02:51]}
11... a6 {[%clk 0:02:01.4]} 12. Nd4 {[%clk 0:02:50.7]} 12... Bd7 {[%clk
0:01:59.7]} 13. h4 {[%clk 0:02:46.7]} 13... b5 {[%clk 0:01:57.8]} 14. h5 {[%clk
0:02:46.9]} 14... Rb8 {[%clk 0:01:54.9]} 15. h6 {[%clk 0:02:29.2]} 15... g6
{[%clk 0:01:54.7]} 16. b4 {[%clk 0:01:37.9]} 16... Na4 {[%clk 0:01:41.2]} 17.
Nxa4 {[%clk 0:01:30.8]} 17... bxa4 {[%clk 0:01:42.1]} 18. c3 {[%clk 0:01:30.7]}
18... a5 {[%clk 0:01:39.8]} 19. Nxc6 {[%clk 0:01:21.3]} 19... Bxc6 {[%clk
0:01:39.6]} 20. Bd4 {[%clk 0:01:21.6]} 20... Qd7 {[%clk 0:01:36.6]} 21. Rh3
{[%clk 0:01:15.2]} 21... Rfc8 {[%clk 0:01:35.5]} 22. Kb1 {[%clk 0:01:12.2]}
22... Bb5 {[%clk 0:01:34.5]} 23. Ka1 {[%clk 0:00:53.9]} 23... Bc4 {[%clk
0:01:24.8]} 24. Rg3 {[%clk 0:00:47.6]} 24... axb4 {[%clk 0:01:16.8]} 25. cxb4
{[%clk 0:00:47.3]} 25... Qb5 {[%clk 0:01:17]} 26. Bd3 {[%clk 0:00:42.7]} 26...
Rc6 {[%clk 0:01:07]} 27. Rc1 {[%clk 0:00:13.2]} 27... Rbc8 {[%clk 0:00:56]} 28.
Bxc4 {[%clk 0:00:13]} 28... dxc4 {[%clk 0:00:55.1]} 29. Bc3 {[%clk 0:00:11.2]}
29... Rd8 {[%clk 0:00:54.1]} 30. Qe1 {[%clk 0:00:11.4]} 30... Rc7 {[%clk
0:00:50.9]} 31. Rd1 {[%clk 0:00:11.1]} 31... Rcd7 {[%clk 0:00:48.5]} 32. Rxd7
{[%clk 0:00:10.4]} 32... Rxd7 {[%clk 0:00:49.4]} 33. f5 {[%clk 0:00:08.4]} 33...
Qd5 {[%clk 0:00:30.3]} 34. fxg6 {[%clk 0:00:07.1]} 34... fxg6 {[%clk 0:00:30.1]}
35. Kb2 {[%clk 0:00:05.9]} 35... Bf8 {[%clk 0:00:29.4]} 36. Qe3 {[%clk
0:00:05.1]} 36... Qd1 {[%clk 0:00:26.1]} 37. Rf3 {[%clk 0:00:02.9]} 37... Qb3+
{[%clk 0:00:26.1]} 0-1

[Event "Early-Titled-Tuesday-Blitz-March-12-2024"]
[Site "Chess.com"]
[Date "2024.03.12"]
[Round "2"]
[White "YegoryoCh"]
[Black "vaniavindy"]
[Result "1-0"]
[WhiteElo "2492"]
[BlackElo "2128"]
[TimeControl "180+1"]
[EndTime "8:17:29 PDT"]
[Termination "YegoryoCh won on time"]

1. e4 {[%clk 0:03:00.9]} 1... c6 {[%clk 0:02:29.3]} 2. d4 {[%clk 0:02:59.7]}
2... d5 {[%clk 0:02:28.5]} 3. e5 {[%clk 0:03:00.3]} 3... Bf5 {[%clk 0:02:26.5]}
4. c4 {[%clk 0:02:59.5]} 4... dxc4 {[%clk 0:02:23.6]} 5. Bxc4 {[%clk 0:02:58.5]}
5... Be4 {[%clk 0:02:22.4]} 6. Nf3 {[%clk 0:02:52]} 6... Bd5 {[%clk 0:02:21.4]}
7. Bd3 {[%clk 0:02:48]} 7... Bxf3 {[%clk 0:02:13.6]} 8. Qxf3 {[%clk 0:02:48]}
8... Qxd4 {[%clk 0:02:05.6]} 9. O-O {[%clk 0:02:47.7]} 9... e6 {[%clk
0:02:00.9]} 10. Nc3 {[%clk 0:02:44.7]} 10... Ne7 {[%clk 0:01:56]} 11. Rd1 {[%clk
0:02:43]} 11... Qb6 {[%clk 0:01:54.3]} 12. Be3 {[%clk 0:02:41.2]} 12... Qc7
{[%clk 0:01:51.8]} 13. Rac1 {[%clk 0:02:39.8]} 13... Ng6 {[%clk 0:01:47.6]} 14.
Nb5 {[%clk 0:02:14.8]} 14... Qa5 {[%clk 0:01:40.4]} 15. Nd6+ {[%clk 0:01:20.1]}
15... Bxd6 {[%clk 0:01:38.7]} 16. exd6 {[%clk 0:01:21]} 16... O-O {[%clk
0:01:36.1]} 17. Qg3 {[%clk 0:01:21]} 17... Nd7 {[%clk 0:01:33.5]} 18. a3 {[%clk
0:01:18.8]} 18... Rac8 {[%clk 0:01:16.2]} 19. h4 {[%clk 0:01:16.6]} 19... Qh5
{[%clk 0:01:11.5]} 20. Bg5 {[%clk 0:01:16.4]} 20... f5 {[%clk 0:01:00.5]} 21.
Qe3 {[%clk 0:01:12.9]} 21... Nge5 {[%clk 0:00:43.8]} 22. f4 {[%clk 0:01:12.6]}
22... Ng4 {[%clk 0:00:42.7]} 23. Qxe6+ {[%clk 0:01:11.7]} 23... Qf7 {[%clk
0:00:40.5]} 24. Bxf5 {[%clk 0:01:11.2]} 24... Kh8 {[%clk 0:00:33.7]} 25. Qxd7
{[%clk 0:01:09]} 25... Qxf5 {[%clk 0:00:12.4]} 26. Qxf5 {[%clk 0:01:08.4]} 26...
Rxf5 {[%clk 0:00:13.2]} 27. d7 {[%clk 0:01:08.7]} 27... Rff8 {[%clk 0:00:11.9]}
28. dxc8=Q {[%clk 0:01:07.7]} 28... Rxc8 {[%clk 0:00:12.8]} 29. Rd8+ {[%clk
0:01:07]} 29... Rxd8 {[%clk 0:00:13.4]} 30. Bxd8 {[%clk 0:01:07.2]} 30... h5
{[%clk 0:00:12.2]} 31. Re1 {[%clk 0:01:06.1]} 31... Kh7 {[%clk 0:00:13.1]} 32.
Re7 {[%clk 0:01:05.9]} 32... Kg6 {[%clk 0:00:10.1]} 33. Rxb7 {[%clk 0:01:05.9]}
33... Kf5 {[%clk 0:00:10.5]} 34. Rxg7 {[%clk 0:01:05.3]} 34... Kxf4 {[%clk
0:00:11.3]} 35. Rg5 {[%clk 0:01:05.1]} 35... Kg3 {[%clk 0:00:11.3]} 36. Bc7+
{[%clk 0:01:04.4]} 36... Kxh4 {[%clk 0:00:10.7]} 37. Rc5 {[%clk 0:01:03.8]}
37... a5 {[%clk 0:00:07.6]} 38. Rxc6 {[%clk 0:01:03.1]} 38... a4 {[%clk
0:00:07.6]} 39. Rc5 {[%clk 0:01:02.7]} 39... Ne3 {[%clk 0:00:03]} 40. Kf2 {[%clk
0:01:00.2]} 40... Ng4+ {[%clk 0:00:02.4]} 41. Kf3 {[%clk 0:01:00.4]} 41... Nh2+
{[%clk 0:00:02.4]} 42. Ke2 {[%clk 0:00:58.1]} 42... Ng4 {[%clk 0:00:02.2]} 43.
Rc4 {[%clk 0:00:56.9]} 1-0

[Event "Early-Titled-Tuesday-Blitz-March-12-2024"]
[Site "Chess.com"]
[Date "2024.03.12"]
[Round "2"]
[White "blitzking1729"]
[Black "Barmen_EV"]
[Result "1-0"]
[WhiteElo "2811"]
[BlackElo "2506"]
[TimeControl "180+1"]
[EndTime "8:17:34 PDT"]
[Termination "blitzking1729 won by checkmate"]

1. c4 {[%clk 0:02:59.7]} 1... f5 {[%clk 0:02:59.9]} 2. Nc3 {[%clk 0:02:59.6]}
2... Nf6 {[%clk 0:03:00.6]} 3. d4 {[%clk 0:02:59.8]} 3... d6 {[%clk 0:03:01.1]}
4. Nf3 {[%clk 0:02:55.4]} 4... g6 {[%clk 0:03:00.5]} 5. g3 {[%clk 0:02:54.7]}
5... Bg7 {[%clk 0:03:01]} 6. Bg2 {[%clk 0:02:55.4]} 6... O-O {[%clk 0:03:01.6]}
7. O-O {[%clk 0:02:56.1]} 7... Qe8 {[%clk 0:03:02.2]} 8. d5 {[%clk 0:02:53.9]}
8... Na6 {[%clk 0:03:02.1]} 9. Nd4 {[%clk 0:02:53.8]} 9... Bd7 {[%clk
0:03:02.1]} 10. Rb1 {[%clk 0:02:50.9]} 10... Nc5 {[%clk 0:03:00.7]} 11. b4
{[%clk 0:02:50.6]} 11... Nfe4 {[%clk 0:03:01]} 12. Nxe4 {[%clk 0:02:42.6]} 12...
Nxe4 {[%clk 0:03:01.9]} 13. Bb2 {[%clk 0:02:42.5]} 13... Qf7 {[%clk 0:02:56.8]}
14. f3 {[%clk 0:02:34.8]} 14... Nf6 {[%clk 0:02:54.3]} 15. e4 {[%clk 0:02:34.6]}
15... f4 {[%clk 0:02:50.4]} 16. gxf4 {[%clk 0:02:14.9]} 16... Nh5 {[%clk
0:02:49.5]} 17. f5 {[%clk 0:02:15.2]} 17... gxf5 {[%clk 0:02:40.1]} 18. f4
{[%clk 0:02:15.1]} 18... fxe4 {[%clk 0:02:31]} 19. f5 {[%clk 0:02:15.3]} 19...
Be5 {[%clk 0:01:47.8]} 20. Ne6 {[%clk 0:02:05.7]} 20... Bxe6 {[%clk 0:01:32.5]}
21. dxe6 {[%clk 0:02:04.8]} 21... Qe8 {[%clk 0:01:29]} 22. Bxe5 {[%clk
0:02:03.5]} 22... dxe5 {[%clk 0:01:29.9]} 23. Qg4+ {[%clk 0:02:02.8]} 23... Kh8
{[%clk 0:01:28.9]} 24. Qxe4 {[%clk 0:02:01]} 24... Nf6 {[%clk 0:01:17]} 25. Qxe5
{[%clk 0:02:00.9]} 25... c6 {[%clk 0:01:14.8]} 26. Kh1 {[%clk 0:01:48.3]} 26...
Rg8 {[%clk 0:01:14.1]} 27. Bf3 {[%clk 0:01:45.5]} 27... Qf8 {[%clk 0:01:09.6]}
28. Qf4 {[%clk 0:01:27]} 28... Rd8 {[%clk 0:01:02.6]} 29. Rbd1 {[%clk
0:01:25.8]} 29... Rxd1 {[%clk 0:01:02.3]} 30. Rxd1 {[%clk 0:01:26.7]} 30... Qg7
{[%clk 0:01:02]} 31. Qc7 {[%clk 0:01:10.5]} 31... Ng4 {[%clk 0:00:22.7]} 32.
Bxg4 {[%clk 0:01:07.8]} 32... Qxg4 {[%clk 0:00:22.1]} 33. Qe5+ {[%clk
0:01:08.2]} 33... Qg7 {[%clk 0:00:21.4]} 34. Qxg7+ {[%clk 0:01:08]} 34... Kxg7
{[%clk 0:00:21.1]} 35. Rg1+ {[%clk 0:01:02.5]} 35... Kf8 {[%clk 0:00:21.3]} 36.
Rxg8+ {[%clk 0:01:03.2]} 36... Kxg8 {[%clk 0:00:22.2]} 37. Kg2 {[%clk
0:01:03.7]} 37... Kg7 {[%clk 0:00:22.9]} 38. Kg3 {[%clk 0:01:04.1]} 38... Kf6
{[%clk 0:00:23.3]} 39. Kf4 {[%clk 0:01:04.6]} 39... h6 {[%clk 0:00:22.1]} 40. h3
{[%clk 0:01:03.4]} 40... b6 {[%clk 0:00:19.8]} 41. a4 {[%clk 0:01:01.4]} 41...
a6 {[%clk 0:00:15.1]} 42. h4 {[%clk 0:01:00.5]} 42... h5 {[%clk 0:00:03.6]} 43.
Ke4 {[%clk 0:00:59.6]} 43... b5 {[%clk 0:00:02]} 44. cxb5 {[%clk 0:00:58.2]}
44... axb5 {[%clk 0:00:02.9]} 45. a5 {[%clk 0:00:55.7]} 45... Kg7 {[%clk
0:00:02.8]} 46. a6 {[%clk 0:00:55.8]} 46... c5 {[%clk 0:00:03.3]} 47. a7 {[%clk
0:00:54.8]} 47... c4 {[%clk 0:00:03.9]} 48. a8=Q {[%clk 0:00:55.2]} 48... c3
{[%clk 0:00:04.8]} 49. Qe8 {[%clk 0:00:55.3]} 49... c2 {[%clk 0:00:05.7]} 50.
Qxe7+ {[%clk 0:00:54.5]} 50... Kg8 {[%clk 0:00:05.6]} 51. f6 {[%clk 0:00:54.4]}
51... Kh8 {[%clk 0:00:06.5]} 52. Qg7# {[%clk 0:00:54.7]} 1-0